[Event "Titled Tuesday Blitz January 10 Late 2023"]
[White "Kleiman, Jake"]
[Black "Melkumyan, Hrant"]
[WhiteFideId "2020041"]
[BlackFideId "13302485"]
[WhiteElo "2399"]
[BlackElo "2645"]
[Result "0-1"]
[Round "03"]
[TimeControl "180+2"]
[Date "2023.01.10"]
[WhiteClock "0:00:07"]
[BlackClock "0:00:44"]

1. e4 {[%clk 0:00:00]}  c6 {[%clk 0:00:00]} 2. Nc3 {[%clk 0:02:57]}  d5 {[%clk 0:02:58]} 3. Nf3 {[%clk 0:02:57]}  dxe4 {[%clk 0:02:59]} 4. Nxe4 {[%clk 0:02:57]}  Nf6 {[%clk 0:02:59]} 5. Qe2 {[%clk 0:02:58]}  Bf5 {[%clk 0:03:00]} 6. d3 {[%clk 0:02:58]}  e6 {[%clk 0:02:54]} 7. g3 {[%clk 0:02:58]}  Nbd7 {[%clk 0:02:52]} 8. Bg2 {[%clk 0:02:58]}  Be7 {[%clk 0:02:50]} 9. O-O {[%clk 0:02:59]}  O-O {[%clk 0:02:47]} 10. Re1 {[%clk 0:02:59]}  a5 {[%clk 0:02:47]} 11. a4 {[%clk 0:02:59]}  Nd5 {[%clk 0:02:46]} 12. Bd2 {[%clk 0:02:59]}  h6 {[%clk 0:02:44]} 13. h3 {[%clk 0:02:53]}  Qb6 {[%clk 0:02:40]} 14. Rab1 {[%clk 0:02:52]}  Rfd8 {[%clk 0:02:37]} 15. Kh1 {[%clk 0:02:47]}  Nc5 {[%clk 0:02:36]} 16. b3 {[%clk 0:02:41]}  Qc7 {[%clk 0:02:34]} 17. Rbd1 {[%clk 0:02:37]}  b5 {[%clk 0:02:20]} 18. Nxc5 {[%clk 0:02:36]}  Bxc5 {[%clk 0:02:17]} 19. Ra1 {[%clk 0:02:30]}  Qb6 {[%clk 0:02:16]} 20. Kg1 {[%clk 0:02:29]}  Nb4 {[%clk 0:02:12]} 21. Bc3 {[%clk 0:02:28]}  Rac8 {[%clk 0:02:09]} 22. Ne5 {[%clk 0:02:13]}  Nd5 {[%clk 0:01:40]} 23. Bd2 {[%clk 0:02:00]}  Bd4 {[%clk 0:01:27]} 24. Rab1 {[%clk 0:01:52]}  Nb4 {[%clk 0:01:25]} 25. Bf4 {[%clk 0:01:43]}  Qc5 {[%clk 0:01:25]} 26. Rec1 {[%clk 0:01:34]}  Na2 {[%clk 0:01:15]} 27. c3 {[%clk 0:01:03]}  Nxc1 {[%clk 0:01:15]} 28. Rxc1 {[%clk 0:00:23]}  Bxe5 {[%clk 0:01:13]} 29. Bxe5 {[%clk 0:00:24]}  Bxd3 {[%clk 0:01:14]} 30. Qe1 {[%clk 0:00:22]}  bxa4 {[%clk 0:01:14]} 31. Bd4 {[%clk 0:00:23]}  Rxd4 {[%clk 0:01:13]} 32. cxd4 {[%clk 0:00:23]}  Qxd4 {[%clk 0:01:05]} 33. bxa4 {[%clk 0:00:23]}  Qxa4 {[%clk 0:01:06]} 34. Qc3 {[%clk 0:00:23]}  Bb5 {[%clk 0:01:06]} 35. Qe5 {[%clk 0:00:20]}  Qb4 {[%clk 0:01:04]} 36. Rd1 {[%clk 0:00:18]}  a4 {[%clk 0:01:01]} 37. Be4 {[%clk 0:00:17]}  a3 {[%clk 0:01:00]} 38. Rd7 {[%clk 0:00:17]}  Rf8 {[%clk 0:00:58]} 39. Ra7 {[%clk 0:00:15]}  Qb2 {[%clk 0:00:53]} 40. Qf4 {[%clk 0:00:12]}  a2 {[%clk 0:00:52]} 41. Rxf7 {[%clk 0:00:10]}  a1=Q+ {[%clk 0:00:47]} 42. Kh2 {[%clk 0:00:07]}  Rxf7 {[%clk 0:00:46]} 43. Qb8+ {[%clk 0:00:07]}  Rf8 {[%clk 0:00:44]} 0-1


[Site "https://www.chess.com"]

[Event "Titled Tuesday Blitz January 10 Late 2023"]
[White "Galperin, Platon"]
[Black "Krallis, Christos"]
[WhiteFideId "14165414"]
[BlackFideId "4298896"]
[WhiteElo "2528"]
[BlackElo "2344"]
[Result "1/2-1/2"]
[Round "03"]
[TimeControl "180+2"]
[Date "2023.01.10"]
[WhiteClock "0:00:33"]
[BlackClock "0:00:15"]

1. b3 {[%clk 0:00:00]}  c5 {[%clk 0:00:00]} 2. Bb2 {[%clk 0:03:00]}  Nc6 {[%clk 0:02:57]} 3. e4 {[%clk 0:02:58]}  d6 {[%clk 0:02:58]} 4. Bb5 {[%clk 0:02:58]}  Bd7 {[%clk 0:02:54]} 5. Nc3 {[%clk 0:02:56]}  Nd4 {[%clk 0:02:53]} 6. Bc4 {[%clk 0:02:56]}  e6 {[%clk 0:02:46]} 7. Nge2 {[%clk 0:02:54]}  Nf6 {[%clk 0:02:44]} 8. O-O {[%clk 0:02:55]}  Be7 {[%clk 0:02:39]} 9. a4 {[%clk 0:02:48]}  O-O {[%clk 0:02:37]} 10. d3 {[%clk 0:02:42]}  d5 {[%clk 0:02:35]} 11. exd5 {[%clk 0:02:40]}  exd5 {[%clk 0:02:14]} 12. Nxd5 {[%clk 0:02:35]}  Nxd5 {[%clk 0:02:14]} 13. Nxd4 {[%clk 0:02:33]}  Nb6 {[%clk 0:02:07]} 14. Nf3 {[%clk 0:02:27]}  Nxc4 {[%clk 0:01:43]} 15. bxc4 {[%clk 0:01:29]}  Bf6 {[%clk 0:01:40]} 16. Qc1 {[%clk 0:01:30]}  Bc6 {[%clk 0:01:31]} 17. Ne5 {[%clk 0:01:27]}  Bxe5 {[%clk 0:01:30]} 18. Bxe5 {[%clk 0:01:21]}  Qd7 {[%clk 0:01:29]} 19. Re1 {[%clk 0:01:22]}  Rae8 {[%clk 0:01:27]} 20. Qf4 {[%clk 0:01:19]}  f6 {[%clk 0:01:05]} 21. Bd6 {[%clk 0:01:16]}  Rxe1+ {[%clk 0:01:00]} 22. Rxe1 {[%clk 0:01:16]}  Re8 {[%clk 0:00:59]} 23. Re3 {[%clk 0:01:17]}  Rxe3 {[%clk 0:01:00]} 24. fxe3 {[%clk 0:01:11]}  Bxa4 {[%clk 0:00:53]} 25. Bxc5 {[%clk 0:01:12]}  Bxc2 {[%clk 0:00:52]} 26. d4 {[%clk 0:01:12]}  b6 {[%clk 0:00:52]} 27. Ba3 {[%clk 0:01:11]}  Bb3 {[%clk 0:00:50]} 28. d5 {[%clk 0:01:11]}  Qc8 {[%clk 0:00:38]} 29. d6 {[%clk 0:01:08]}  Ba4 {[%clk 0:00:36]} 30. c5 {[%clk 0:01:07]}  Bd7 {[%clk 0:00:28]} 31. Qc4+ {[%clk 0:01:06]}  Be6 {[%clk 0:00:24]} 32. Qe4 {[%clk 0:01:05]}  bxc5 {[%clk 0:00:24]} 33. Bxc5 {[%clk 0:01:05]}  Kf7 {[%clk 0:00:20]} 34. Bxa7 {[%clk 0:01:06]}  Qc1+ {[%clk 0:00:20]} 35. Kf2 {[%clk 0:00:58]}  Qd2+ {[%clk 0:00:20]} 36. Kf1 {[%clk 0:00:57]}  Qd1+ {[%clk 0:00:20]} 37. Kf2 {[%clk 0:00:52]}  Qd2+ {[%clk 0:00:19]} 38. Kf1 {[%clk 0:00:52]}  Qxd6 {[%clk 0:00:20]} 39. Qb7+ {[%clk 0:00:48]}  Kg6 {[%clk 0:00:17]} 40. Qe4+ {[%clk 0:00:44]}  Bf5 {[%clk 0:00:16]} 41. Qf4 {[%clk 0:00:34]}  Qxf4+ {[%clk 0:00:14]} 42. exf4 {[%clk 0:00:32]}  Be4 {[%clk 0:00:08]} 43. Kf2 {[%clk 0:00:33]}  Kf5 {[%clk 0:00:08]} 44. g3 {[%clk 0:00:33]}  g5 {[%clk 0:00:09]} 45. Bb8 {[%clk 0:00:31]}  g4 {[%clk 0:00:09]} 46. Ke3 {[%clk 0:00:29]}  Bg2 {[%clk 0:00:08]} 47. Bc7 {[%clk 0:00:29]}  Kg6 {[%clk 0:00:06]} 48. Bd8 {[%clk 0:00:29]}  f5 {[%clk 0:00:06]} 49. Kd4 {[%clk 0:00:28]}  Ba8 {[%clk 0:00:07]} 50. Ke5 {[%clk 0:00:29]}  Bg2 {[%clk 0:00:08]} 51. Kd6 {[%clk 0:00:30]}  Bh3 {[%clk 0:00:08]} 52. Kc7 {[%clk 0:00:30]}  Bg2 {[%clk 0:00:08]} 53. Kb6 {[%clk 0:00:31]}  Bh3 {[%clk 0:00:09]} 54. Kc5 {[%clk 0:00:31]}  Bg2 {[%clk 0:00:10]} 55. Kd4 {[%clk 0:00:32]}  Be4 {[%clk 0:00:10]} 56. Kc5 {[%clk 0:00:33]}  Kf7 {[%clk 0:00:11]} 57. Kb6 {[%clk 0:00:34]}  Ke6 {[%clk 0:00:11]} 58. Kc5 {[%clk 0:00:35]}  Kd7 {[%clk 0:00:12]} 59. Ba5 {[%clk 0:00:34]}  Ke6 {[%clk 0:00:12]} 60. Kd4 {[%clk 0:00:32]}  Kf7 {[%clk 0:00:12]} 61. Bc3 {[%clk 0:00:33]}  Kg6 {[%clk 0:00:12]} 62. Ke5 {[%clk 0:00:33]}  h5 {[%clk 0:00:12]} 63. Be1 {[%clk 0:00:34]}  Ba8 {[%clk 0:00:13]} 64. Ke6 {[%clk 0:00:34]}  Bg2 {[%clk 0:00:13]} 65. Ke7 {[%clk 0:00:34]}  Bf3 {[%clk 0:00:14]} 66. Kf8 {[%clk 0:00:35]}  Be2 {[%clk 0:00:15]} 67. Kg8 {[%clk 0:00:35]}  Bc4+ {[%clk 0:00:15]} 68. Kf8 {[%clk 0:00:35]}  Bd5 {[%clk 0:00:14]} 69. Ke7 {[%clk 0:00:36]}  Ba2 {[%clk 0:00:15]} 70. Kd6 {[%clk 0:00:37]}  Bb3 {[%clk 0:00:15]} 71. Ke5 {[%clk 0:00:38]}  Bd1 {[%clk 0:00:16]} 72. Kd4 {[%clk 0:00:39]}  Bf3 {[%clk 0:00:17]} 73. Ke3 {[%clk 0:00:40]}  Be4 {[%clk 0:00:18]} 74. Kf2 {[%clk 0:00:40]}  Kf7 {[%clk 0:00:18]} 75. Kg1 {[%clk 0:00:41]}  Ke6 {[%clk 0:00:19]} 76. h4 {[%clk 0:00:42]}  gxh3 {[%clk 0:00:19]} 77. Kh2 {[%clk 0:00:43]}  Bg2 {[%clk 0:00:18]} 78. Ba5 {[%clk 0:00:44]}  Kd5 {[%clk 0:00:19]} 79. Bd8 {[%clk 0:00:44]}  Ke4 {[%clk 0:00:19]} 80. Bh4 {[%clk 0:00:44]}  Kf3 {[%clk 0:00:19]} 81. Bg5 {[%clk 0:00:45]}  Kg4 {[%clk 0:00:19]} 82. Bh4 {[%clk 0:00:42]}  Bf3 {[%clk 0:00:19]} 83. Bg5 {[%clk 0:00:42]}  Bc6 {[%clk 0:00:19]} 84. Bh4 {[%clk 0:00:42]}  Be8 {[%clk 0:00:19]} 85. Bg5 {[%clk 0:00:42]}  Bf7 {[%clk 0:00:20]} 86. Bh4 {[%clk 0:00:36]}  Be8 {[%clk 0:00:16]} 87. Bg5 {[%clk 0:00:37]}  Bf7 {[%clk 0:00:16]} 88. Bh4 {[%clk 0:00:33]}  Be8 {[%clk 0:00:15]} 1/2-1/2


[Site "https://www.chess.com"]

[Event "Titled Tuesday Blitz January 10 Late 2023"]
[White "Svane, Frederik"]
[Black "Martynov, Pavel"]
[WhiteFideId "12923044"]
[BlackFideId "4101260"]
[WhiteElo "2600"]
[BlackElo "2414"]
[Result "1-0"]
[Round "03"]
[TimeControl "180+2"]
[Date "2023.01.10"]
[WhiteClock "0:00:06"]
[BlackClock "0:00:04"]

1. c4 {[%clk 0:00:00]}  e6 {[%clk 0:00:00]} 2. g3 {[%clk 0:03:00]}  d5 {[%clk 0:02:59]} 3. Bg2 {[%clk 0:02:56]}  Nf6 {[%clk 0:03:00]} 4. Nf3 {[%clk 0:02:57]}  c5 {[%clk 0:03:00]} 5. O-O {[%clk 0:02:56]}  Nc6 {[%clk 0:03:01]} 6. cxd5 {[%clk 0:02:55]}  exd5 {[%clk 0:03:01]} 7. d4 {[%clk 0:02:55]}  Be7 {[%clk 0:03:02]} 8. dxc5 {[%clk 0:02:56]}  Bxc5 {[%clk 0:03:03]} 9. Nbd2 {[%clk 0:02:55]}  O-O {[%clk 0:03:02]} 10. Nb3 {[%clk 0:02:55]}  Be7 {[%clk 0:03:02]} 11. Be3 {[%clk 0:02:56]}  h6 {[%clk 0:03:01]} 12. Rc1 {[%clk 0:02:56]}  Re8 {[%clk 0:03:00]} 13. Bc5 {[%clk 0:02:55]}  Bxc5 {[%clk 0:03:00]} 14. Nxc5 {[%clk 0:02:55]}  Qb6 {[%clk 0:03:00]} 15. Nb3 {[%clk 0:02:55]}  Bg4 {[%clk 0:03:00]} 16. Re1 {[%clk 0:02:46]}  a5 {[%clk 0:02:59]} 17. Nbd4 {[%clk 0:02:15]}  Bxf3 {[%clk 0:02:59]} 18. Nxf3 {[%clk 0:01:36]}  Qxb2 {[%clk 0:02:47]} 19. Rc2 {[%clk 0:01:31]}  Qa3 {[%clk 0:02:47]} 20. Qd2 {[%clk 0:01:23]}  Rad8 {[%clk 0:02:31]} 21. Rc3 {[%clk 0:01:12]}  Qa4 {[%clk 0:02:18]} 22. Rb3 {[%clk 0:01:06]}  Re7 {[%clk 0:02:13]} 23. Qb2 {[%clk 0:01:03]}  Rb8 {[%clk 0:01:46]} 24. Rc1 {[%clk 0:01:01]}  Rbe8 {[%clk 0:01:19]} 25. e3 {[%clk 0:00:57]}  d4 {[%clk 0:01:15]} 26. Nxd4 {[%clk 0:00:56]}  Nxd4 {[%clk 0:00:37]} 27. Qxd4 {[%clk 0:00:40]}  Qxa2 {[%clk 0:00:37]} 28. Rxb7 {[%clk 0:00:26]}  Rxb7 {[%clk 0:00:36]} 29. Bxb7 {[%clk 0:00:23]}  a4 {[%clk 0:00:20]} 30. Ra1 {[%clk 0:00:24]}  Qb3 {[%clk 0:00:19]} 31. Bc6 {[%clk 0:00:23]}  Rc8 {[%clk 0:00:18]} 32. Bxa4 {[%clk 0:00:20]}  Qe6 {[%clk 0:00:14]} 33. Bd1 {[%clk 0:00:20]}  Qe4 {[%clk 0:00:12]} 34. Qxe4 {[%clk 0:00:19]}  Nxe4 {[%clk 0:00:10]} 35. Bf3 {[%clk 0:00:08]}  Ng5 {[%clk 0:00:11]} 36. Bd1 {[%clk 0:00:08]}  Ne4 {[%clk 0:00:06]} 37. h4 {[%clk 0:00:08]}  Nc3 {[%clk 0:00:05]} 38. Bf3 {[%clk 0:00:08]}  Nb5 {[%clk 0:00:04]} 39. Kg2 {[%clk 0:00:08]}  Nd6 {[%clk 0:00:03]} 40. Ra5 {[%clk 0:00:08]}  g6 {[%clk 0:00:03]} 41. Bd5 {[%clk 0:00:09]}  Rc7 {[%clk 0:00:01]} 42. Ra6 {[%clk 0:00:09]}  Rd7 {[%clk 0:00:01]} 43. Bc6 {[%clk 0:00:09]}  Rd8 {[%clk 0:00:01]} 44. Ra7 {[%clk 0:00:09]}  Kg7 {[%clk 0:00:01]} 45. Bd5 {[%clk 0:00:09]}  h5 {[%clk 0:00:02]} 46. e4 {[%clk 0:00:09]}  Rf8 {[%clk 0:00:02]} 47. Rd7 {[%clk 0:00:09]}  Nb5 {[%clk 0:00:01]} 48. e5 {[%clk 0:00:10]}  Nd4 {[%clk 0:00:01]} 49. Bxf7 {[%clk 0:00:09]}  Rxf7 {[%clk 0:00:02]} 50. Rxd4 {[%clk 0:00:07]}  Re7 {[%clk 0:00:01]} 51. f4 {[%clk 0:00:07]}  Kf7 {[%clk 0:00:01]} 52. Kf3 {[%clk 0:00:07]}  Ke6 {[%clk 0:00:02]} 53. Rd6+ {[%clk 0:00:08]}  Kf7 {[%clk 0:00:03]} 54. Ke4 {[%clk 0:00:08]}  Kg7 {[%clk 0:00:04]} 55. f5 {[%clk 0:00:07]}  Ra7 {[%clk 0:00:04]} 56. Rxg6+ {[%clk 0:00:06]} 1-0


[Site "https://www.chess.com"]

[Event "Titled Tuesday Blitz January 10 Late 2023"]
[White "Movahed, Sina"]
[Black "Gavilan Diaz, Mario"]
[WhiteFideId "42520835"]
[BlackFideId "2260905"]
[WhiteElo "2340"]
[BlackElo "2271"]
[Result "1/2-1/2"]
[Round "03"]
[TimeControl "180+2"]
[Date "2023.01.10"]
[WhiteClock "0:00:45"]
[BlackClock "0:00:29"]

1. e4 {[%clk 0:00:00]}  e6 {[%clk 0:00:00]} 2. d4 {[%clk 0:02:59]}  d5 {[%clk 0:02:59]} 3. e5 {[%clk 0:02:58]}  c5 {[%clk 0:02:59]} 4. c3 {[%clk 0:02:59]}  Qb6 {[%clk 0:02:59]} 5. Nf3 {[%clk 0:02:59]}  Bd7 {[%clk 0:02:59]} 6. Be2 {[%clk 0:02:59]}  Bb5 {[%clk 0:02:59]} 7. dxc5 {[%clk 0:02:51]}  Bxc5 {[%clk 0:02:59]} 8. b4 {[%clk 0:02:51]}  Be7 {[%clk 0:02:57]} 9. Be3 {[%clk 0:02:51]}  Bxe2 {[%clk 0:02:34]} 10. Qxe2 {[%clk 0:02:50]}  Qc7 {[%clk 0:02:28]} 11. O-O {[%clk 0:02:49]}  Nc6 {[%clk 0:02:28]} 12. Bd4 {[%clk 0:02:45]}  Nh6 {[%clk 0:02:28]} 13. Nbd2 {[%clk 0:02:40]}  Nf5 {[%clk 0:02:28]} 14. Nb3 {[%clk 0:02:37]}  O-O {[%clk 0:02:28]} 15. Rfd1 {[%clk 0:02:36]}  a5 {[%clk 0:02:23]} 16. b5 {[%clk 0:02:34]}  a4 {[%clk 0:02:14]} 17. Nbd2 {[%clk 0:02:34]}  Na5 {[%clk 0:02:12]} 18. Qd3 {[%clk 0:02:24]}  Rfc8 {[%clk 0:02:11]} 19. Rab1 {[%clk 0:02:23]}  Nc4 {[%clk 0:02:06]} 20. Kf1 {[%clk 0:02:20]}  Ba3 {[%clk 0:02:03]} 21. Nxc4 {[%clk 0:02:07]}  Qxc4 {[%clk 0:01:43]} 22. Qxc4 {[%clk 0:02:05]}  Rxc4 {[%clk 0:01:43]} 23. Ke2 {[%clk 0:02:01]}  Rac8 {[%clk 0:01:44]} 24. Rd3 {[%clk 0:01:59]}  h5 {[%clk 0:01:42]} 25. Nd2 {[%clk 0:01:51]}  R4c7 {[%clk 0:01:01]} 26. Kd1 {[%clk 0:01:19]}  Nxd4 {[%clk 0:00:53]} 27. cxd4 {[%clk 0:01:07]}  Rc1+ {[%clk 0:00:46]} 28. Ke2 {[%clk 0:01:08]}  Rxb1 {[%clk 0:00:46]} 29. Nxb1 {[%clk 0:00:59]}  Bb4 {[%clk 0:00:41]} 30. Kd1 {[%clk 0:01:00]}  f6 {[%clk 0:00:41]} 31. exf6 {[%clk 0:00:57]}  gxf6 {[%clk 0:00:39]} 32. Na3 {[%clk 0:00:55]}  Bxa3 {[%clk 0:00:39]} 33. Rxa3 {[%clk 0:00:55]}  Rc4 {[%clk 0:00:30]} 34. Rd3 {[%clk 0:00:56]}  Rb4 {[%clk 0:00:30]} 35. Kc2 {[%clk 0:00:53]}  Rxb5 {[%clk 0:00:30]} 36. Rh3 {[%clk 0:00:54]}  Rb4 {[%clk 0:00:30]} 37. Kc3 {[%clk 0:00:54]}  Rc4+ {[%clk 0:00:29]} 38. Kd3 {[%clk 0:00:46]}  Rb4 {[%clk 0:00:29]} 39. Kc3 {[%clk 0:00:46]}  Rc4+ {[%clk 0:00:29]} 40. Kd3 {[%clk 0:00:44]}  Rb4 {[%clk 0:00:29]} 41. Kc3 {[%clk 0:00:45]} 1/2-1/2


[Site "https://www.chess.com"]

[Event "Titled Tuesday Blitz January 10 Late 2023"]
[White "Kozak, Adam"]
[Black "Winterberg, Lukas"]
[WhiteFideId "753246"]
[BlackFideId "24622702"]
[WhiteElo "2572"]
[BlackElo "2402"]
[Result "1/2-1/2"]
[Round "03"]
[TimeControl "180+2"]
[Date "2023.01.10"]
[WhiteClock "0:00:01"]
[BlackClock "0:00:09"]

1. e4 {[%clk 0:00:00]}  e6 {[%clk 0:00:00]} 2. a3 {[%clk 0:03:00]}  d5 {[%clk 0:02:57]} 3. exd5 {[%clk 0:03:00]}  exd5 {[%clk 0:02:57]} 4. d4 {[%clk 0:02:59]}  Nf6 {[%clk 0:02:54]} 5. Nc3 {[%clk 0:02:59]}  Bd6 {[%clk 0:02:55]} 6. Bg5 {[%clk 0:02:59]}  c6 {[%clk 0:02:54]} 7. Qd2 {[%clk 0:02:58]}  O-O {[%clk 0:02:53]} 8. Bd3 {[%clk 0:02:57]}  Re8+ {[%clk 0:02:43]} 9. Nge2 {[%clk 0:02:56]}  Nbd7 {[%clk 0:02:40]} 10. f3 {[%clk 0:02:56]}  b5 {[%clk 0:02:39]} 11. O-O {[%clk 0:02:56]}  h6 {[%clk 0:02:38]} 12. Bh4 {[%clk 0:02:55]}  Qc7 {[%clk 0:02:37]} 13. Bg3 {[%clk 0:02:55]}  Nf8 {[%clk 0:02:36]} 14. Rae1 {[%clk 0:02:54]}  Bd7 {[%clk 0:02:33]} 15. Nd1 {[%clk 0:02:52]}  a5 {[%clk 0:02:24]} 16. Ne3 {[%clk 0:02:34]}  b4 {[%clk 0:02:23]} 17. a4 {[%clk 0:02:32]}  c5 {[%clk 0:02:21]} 18. Bxd6 {[%clk 0:02:32]}  Qxd6 {[%clk 0:02:19]} 19. b3 {[%clk 0:02:28]}  Ng6 {[%clk 0:02:20]} 20. Bxg6 {[%clk 0:02:29]}  fxg6 {[%clk 0:02:07]} 21. dxc5 {[%clk 0:02:28]}  Qxc5 {[%clk 0:02:04]} 22. Qd4 {[%clk 0:02:28]}  Rac8 {[%clk 0:02:05]} 23. Qxc5 {[%clk 0:02:28]}  Rxc5 {[%clk 0:01:59]} 24. Nd4 {[%clk 0:02:27]}  Kf7 {[%clk 0:02:00]} 25. Re2 {[%clk 0:02:27]}  Bf5 {[%clk 0:01:46]} 26. Rfe1 {[%clk 0:02:23]}  Bc8 {[%clk 0:01:41]} 27. Nd1 {[%clk 0:02:19]}  Rxe2 {[%clk 0:01:38]} 28. Rxe2 {[%clk 0:02:10]}  Bf5 {[%clk 0:01:37]} 29. Rd2 {[%clk 0:02:11]}  Bd7 {[%clk 0:01:34]} 30. Kf2 {[%clk 0:02:09]}  g5 {[%clk 0:01:19]} 31. Ne3 {[%clk 0:02:09]}  g4 {[%clk 0:01:18]} 32. Nd1 {[%clk 0:02:07]}  gxf3 {[%clk 0:01:16]} 33. gxf3 {[%clk 0:01:56]}  g5 {[%clk 0:01:14]} 34. Nb2 {[%clk 0:01:56]}  g4 {[%clk 0:01:14]} 35. Nd3 {[%clk 0:01:57]}  Rc3 {[%clk 0:01:08]} 36. Ke3 {[%clk 0:01:57]}  gxf3 {[%clk 0:01:06]} 37. Kxf3 {[%clk 0:01:11]}  Ne4 {[%clk 0:01:03]} 38. Rg2 {[%clk 0:01:12]}  Ng5+ {[%clk 0:00:55]} 39. Ke3 {[%clk 0:01:12]}  Bh3 {[%clk 0:00:44]} 40. Rg3 {[%clk 0:01:10]}  Ke7 {[%clk 0:00:43]} 41. Kf4 {[%clk 0:00:59]}  Bd7 {[%clk 0:00:40]} 42. h4 {[%clk 0:00:52]}  Ne6+ {[%clk 0:00:23]} 43. Nxe6 {[%clk 0:00:48]}  Bxe6 {[%clk 0:00:23]} 44. Rg2 {[%clk 0:00:44]}  Kd6 {[%clk 0:00:24]} 45. Rd2 {[%clk 0:00:39]}  Bg8 {[%clk 0:00:21]} 46. Ne5 {[%clk 0:00:32]}  Bh7 {[%clk 0:00:19]} 47. Nc4+ {[%clk 0:00:19]}  Kc5 {[%clk 0:00:19]} 48. Nxa5 {[%clk 0:00:20]}  Bxc2 {[%clk 0:00:18]} 49. Nb7+ {[%clk 0:00:18]}  Kc6 {[%clk 0:00:18]} 50. Nd8+ {[%clk 0:00:13]}  Kd6 {[%clk 0:00:18]} 51. a5 {[%clk 0:00:13]}  Bxb3 {[%clk 0:00:17]} 52. a6 {[%clk 0:00:12]}  Rc7 {[%clk 0:00:15]} 53. Nb7+ {[%clk 0:00:12]}  Ke6 {[%clk 0:00:14]} 54. a7 {[%clk 0:00:11]}  Rf7+ {[%clk 0:00:10]} 55. Kg3 {[%clk 0:00:07]}  Rg7+ {[%clk 0:00:07]} 56. Kh2 {[%clk 0:00:06]}  Rg8 {[%clk 0:00:06]} 57. Nc5+ {[%clk 0:00:05]}  Ke5 {[%clk 0:00:05]} 58. Nxb3 {[%clk 0:00:06]}  Ra8 {[%clk 0:00:06]} 59. Ra2 {[%clk 0:00:06]}  Kd6 {[%clk 0:00:07]} 60. Kg3 {[%clk 0:00:06]}  Kc6 {[%clk 0:00:06]} 61. Kf4 {[%clk 0:00:06]}  Kb6 {[%clk 0:00:07]} 62. Ke5 {[%clk 0:00:06]}  Rxa7 {[%clk 0:00:08]} 63. Rxa7 {[%clk 0:00:06]}  Kxa7 {[%clk 0:00:07]} 64. Kxd5 {[%clk 0:00:07]}  Kb6 {[%clk 0:00:08]} 65. Nd4 {[%clk 0:00:07]}  Kc7 {[%clk 0:00:09]} 66. Kc4 {[%clk 0:00:06]}  Kd6 {[%clk 0:00:09]} 67. Nf5+ {[%clk 0:00:03]}  Ke5 {[%clk 0:00:09]} 68. Nxh6 {[%clk 0:00:03]}  Kf4 {[%clk 0:00:10]} 69. Kxb4 {[%clk 0:00:03]}  Kg3 {[%clk 0:00:10]} 70. Nf5+ {[%clk 0:00:01]}  Kg4 {[%clk 0:00:09]} 1/2-1/2


[Site "https://www.chess.com"]

[Event "Titled Tuesday Blitz January 10 Late 2023"]
[White "Boros, Denes"]
[Black "Roberson, Peter T"]
[WhiteFideId "722340"]
[BlackFideId "412384"]
[WhiteElo "2406"]
[BlackElo "2430"]
[Result "1-0"]
[Round "03"]
[TimeControl "180+2"]
[Date "2023.01.10"]
[WhiteClock "0:02:22"]
[BlackClock "0:02:16"]

1. d4 {[%clk 0:00:00]}  Nf6 {[%clk 0:00:00]} 2. Nc3 {[%clk 0:03:00]}  d5 {[%clk 0:02:58]} 3. Nf3 {[%clk 0:03:01]}  Bf5 {[%clk 0:02:57]} 4. Ne5 {[%clk 0:03:02]}  e6 {[%clk 0:02:49]} 5. e3 {[%clk 0:03:01]}  Bd6 {[%clk 0:02:48]} 6. g4 {[%clk 0:03:02]}  Bxe5 {[%clk 0:02:47]} 7. gxf5 {[%clk 0:03:02]}  Bd6 {[%clk 0:02:27]} 8. fxe6 {[%clk 0:02:59]}  fxe6 {[%clk 0:02:27]} 9. Qf3 {[%clk 0:02:50]}  O-O {[%clk 0:02:28]} 10. Qh3 {[%clk 0:02:46]}  Qe7 {[%clk 0:02:25]} 11. Bd3 {[%clk 0:02:45]}  Nc6 {[%clk 0:02:25]} 12. a3 {[%clk 0:02:46]}  e5 {[%clk 0:02:21]} 13. Nxd5 {[%clk 0:02:46]}  Nxd5 {[%clk 0:02:15]} 14. Bxh7+ {[%clk 0:02:46]}  Kf7 {[%clk 0:02:16]} 15. Qh5+ {[%clk 0:02:46]}  Ke6 {[%clk 0:02:16]} 16. Qg4+ {[%clk 0:02:22]} 1-0


[Site "https://www.chess.com"]